fUSD/lending_fUSD_20260304
["ID","MTS","AMOUNT","RATE_DAILY","PERIOD"]
[407677438,1772665084653,-514.55085598,0.00049315,120]
[407677439,1772665084719,-577.75,0.00049315,120]
[407677440,1772665084779,-607.6,0.00049315,120]
[407677441,1772665084836,-603.43,0.00049315,120]
[407677442,1772665084890,-577.75,0.00049315,120]
[407677443,1772665084950,-603.43,0.00049315,120]
[407677444,1772665085008,-607.6,0.00049315,120]
[407677445,1772665085066,-577.75,0.00049315,120]
[407677446,1772665085133,-603.43,0.00049315,120]
[407677447,1772665085201,-607.6,0.00049315,120]
[407677448,1772665085268,-577.75,0.00049315,120]
[407677449,1772665085335,-603.43,0.00049315,120]
[407677450,1772665085402,-607.6,0.00049315,120]
[407677451,1772665085474,-577.75,0.00049315,120]
[407677452,1772665085544,-603.43,0.00049315,120]
[407677453,1772665085613,-607.6,0.00049315,120]
[407677454,1772665085696,-577.75,0.00049315,120]
[407677455,1772665085769,-603.43,0.00049315,120]
[407677456,1772665085838,-607.6,0.00049315,120]
[407677457,1772665085906,-151.0,0.00049315,120]
[407677458,1772665085976,-577.75,0.00049315,120]
[407677459,1772665086048,-603.43,0.00049315,120]
[407677460,1772665086118,-607.6,0.00049315,120]
[407677461,1772665086186,-577.75,0.00049315,120]
[407677462,1772665086254,-603.64020044,0.00049315,120]
[407677463,1772665086319,-500.0,0.00049315,120]
[407677464,1772665086384,-607.6,0.00049315,120]
[407677465,1772665086450,-577.75,0.00049315,120]
[407677466,1772665086515,-500.0,0.00049315,120]
[407677467,1772665086581,-607.6,0.00049315,120]
[407677468,1772665086646,-577.75,0.00049315,120]
[407677469,1772665086717,-500.0,0.00049315,120]
[407677470,1772665086785,-607.6,0.00049315,120]
[407677471,1772665086850,-577.75,0.00049315,120]
[407677472,1772665086911,-500.0,0.00049315,120]
[407677473,1772665086986,-607.6,0.00049315,120]
[407677474,1772665087054,-577.75,0.00049315,120]
[407677475,1772665087117,-171.9817116,0.00049315,120]
[407677476,1772665087180,-500.0,0.00049315,120]
[407677477,1772665087244,-607.6,0.00049315,120]
[407677478,1772665087304,-577.75,0.00049315,120]
[407677479,1772665087365,-582.238431,0.00049315,120]
[407677480,1772665087430,-607.6,0.00049315,120]
[407677481,1772665087490,-577.75,0.00049315,120]
[407677482,1772665087554,-607.6,0.00049315,120]
[407677483,1772665087616,-577.75,0.00049315,120]
[407677484,1772665087678,-607.6,0.00049315,120]
[407677485,1772665087752,-577.75,0.00049315,120]
[407677486,1772665087818,-153.63896722,0.00049315,120]
[407677487,1772665087884,-577.75,0.00049315,120]
[407677488,1772665087960,-607.60725503,0.00049315,120]
[407677489,1772665088025,-577.75,0.00049315,120]
[407677490,1772665088087,-577.75,0.00049315,120]
[407677491,1772665088150,-577.88007669,0.00049315,120]
[407677492,1772665088215,-582.238431,0.00049315,120]
[407677493,1772665088277,-500.0,0.00049315,120]
[407677494,1772665088339,-500.0,0.00049315,120]
[407677495,1772665088401,-500.0,0.00049315,120]
[407677496,1772665088462,-500.0,0.00049315,30]
[407677497,1772665088524,-500.0,0.00049315,120]
[407677498,1772665088586,-151.0,0.00049315,120]
[407677499,1772665088649,-229.58756843,0.00049315,30]
[407677500,1772665088715,-500.0,0.00049315,120]
[407677501,1772665088789,-500.0,0.00049315,120]
[407677502,1772665088854,-500.0,0.00049315,120]
[407677503,1772665088917,-500.0,0.00049315,120]
[407677504,1772665088981,-1450.09,0.00049315,120]
[407677505,1772665089046,-500.0,0.00049315,120]
[407677506,1772665089115,-500.0,0.00049315,120]
[407677507,1772665089183,-582.238431,0.00049315,120]
[407677508,1772665089247,-1450.09,0.00049315,120]
[407677509,1772665089314,-500.0,0.00049315,120]
[407677510,1772665089380,-500.0,0.00049315,120]
[407677511,1772665089448,-500.0,0.00049315,120]
[407677512,1772665089516,-1450.09,0.00049315,120]
[407677513,1772665089581,-500.0,0.00049315,120]
[407677514,1772665089646,-500.0,0.00049315,120]
[407677515,1772665089709,-1450.09,0.00049315,120]
[407677516,1772665089770,-500.0,0.00049315,120]
[407677517,1772665089836,-1450.09,0.00049315,120]
[407677518,1772665089899,-500.0,0.00049315,120]
[407677519,1772665089962,-151.0,0.00049315,120]
[407677520,1772665090026,-500.0,0.00049315,120]
[407677521,1772665090091,-500.0,0.00049315,120]
[407677522,1772665090155,-1450.09,0.00049315,120]
[407677523,1772665090221,-500.0,0.00049315,120]
[407677524,1772665090282,-500.0,0.00049315,120]
[407677525,1772665090346,-188.83154675,0.00049315,120]
[407677526,1772665090410,-1450.09,0.00049315,120]
[407677527,1772665090474,-582.238422,0.00049315,120]
[407677528,1772665090536,-500.0,0.00049315,120]
[407677529,1772665090770,-500.0,0.00049315,120]
[407677530,1772665090832,-1450.09,0.00049315,120]
[407677531,1772665090898,-500.0,0.00049315,120]
[407677532,1772665090963,-500.0,0.00049315,120]
[407677533,1772665091026,-500.0,0.00049315,120]
[407677534,1772665091087,-500.0,0.00049315,120]
[407677535,1772665091147,-1450.09,0.00049315,120]
[407677536,1772665091208,-500.0,0.00049315,120]
[407677537,1772665091272,-500.0,0.00049315,120]
[407677538,1772665091334,-500.0,0.00049315,120]
[407677539,1772665091395,-500.0,0.00049315,120]
[407677540,1772665091456,-1450.09,0.00049315,120]
[407677541,1772665091519,-500.0,0.00049315,120]
[407677542,1772665091578,-500.0,0.00049315,120]
[407677543,1772665091637,-401.00071224,0.00049315,120]
[407677544,1772665091698,-500.0,0.00049315,120]
[407677545,1772665091756,-1450.09,0.00049315,120]
[407677546,1772665091815,-319.42455967,0.00049315,120]
[407677547,1772665091872,-790.46,0.00049315,120]
[407677548,1772665091928,-500.0,0.00049315,120]
[407677549,1772665091990,-500.0,0.00049315,120]
[407677550,1772665092049,-1450.09,0.00049315,120]
[407677551,1772665092109,-4718.46,0.00049315,120]
[407677552,1772665092169,-790.46,0.00049315,120]
[407677553,1772665092231,-1450.09,0.00049315,120]
[407677554,1772665092291,-436.78,0.00049315,120]
[407677555,1772665092348,-500.0,0.00049315,120]
[407677556,1772665092405,-4718.46,0.00049315,120]
[407677557,1772665092465,-790.46,0.00049315,120]
[407677558,1772665092526,-1450.09,0.00049315,120]
[407677559,1772665092589,-165.326245,0.00049315,120]
[407677560,1772665092652,-500.0,0.00049315,120]
[407677561,1772665092715,-4718.46,0.00049315,120]
[407677562,1772665092776,-790.46,0.00049315,120]
[407677563,1772665092842,-1450.09,0.00049315,120]
[407677564,1772665092904,-500.0,0.00049315,120]
[407677565,1772665092963,-4718.46,0.00049315,120]
[407677566,1772665093023,-790.46,0.00049315,120]
[407677567,1772665093086,-1450.09,0.00049315,120]
[407677568,1772665093146,-500.0,0.00049315,120]
[407677569,1772665093209,-790.46,0.00049315,120]
[407677570,1772665093271,-4718.46,0.00049315,120]
[407677571,1772665093338,-1450.09,0.00049315,120]
[407677572,1772665093399,-500.0,0.00049315,120]
[407677573,1772665093463,-4718.46,0.00049315,120]
[407677574,1772665093529,-790.46,0.00049315,120]
[407677575,1772665093594,-1450.09,0.00049315,120]
[407677576,1772665093659,-248.038,0.00049315,120]
[407677577,1772665093718,-500.0,0.00049315,120]
[407677578,1772665093783,-790.46,0.00049315,120]
[407677579,1772665093847,-4718.46,0.00049315,120]
[407677580,1772665093912,-1450.09,0.00049315,120]
[407677581,1772665093975,-500.0,0.00049315,120]
[407677582,1772665094032,-4718.46,0.00049315,120]
[407677583,1772665094091,-1450.09,0.00049315,120]
[407677584,1772665094150,-500.0,0.00049315,120]
[407677585,1772665094208,-790.46,0.00049315,120]
[407677586,1772665094265,-500.0,0.00049315,120]
[407677587,1772665094324,-4718.46,0.00049315,120]
[407677588,1772665094383,-1450.09,0.00049315,120]
[407677589,1772665094443,-500.0,0.00049315,120]
[407677590,1772665094505,-165.326245,0.00049315,120]
[407677591,1772665094563,-500.0,0.00049315,120]
[407677592,1772665094623,-790.46,0.00049315,120]
[407677593,1772665094680,-4718.46,0.00049315,120]
[407677594,1772665094739,-500.0,0.00049315,120]
[407677595,1772665094796,-1450.09,0.00049315,120]
[407677596,1772665094853,-790.46,0.00049315,120]
[407677597,1772665094906,-4718.46,0.00049315,120]
[407677598,1772665094959,-223.43233249,0.00049315,120]
[407677599,1772665095015,-500.0,0.00049315,120]
[407677600,1772665095071,-1450.09,0.00049315,120]
[407677601,1772665095131,-790.46,0.00049315,120]
[407677602,1772665095191,-4718.46,0.00049315,120]
[407677603,1772665095252,-248.038,0.00049315,120]
[407677604,1772665095311,-500.0,0.00049315,120]
[407677605,1772665095369,-1450.09557028,0.00049315,120]
[407677606,1772665095427,-790.46,0.00049315,120]
[407677607,1772665095488,-4718.46,0.00049315,120]
[407677608,1772665095546,-500.0,0.00049315,120]
[407677609,1772665095606,-4718.46,0.00049315,120]
[407677610,1772665095667,-500.0,0.00049315,120]
[407677611,1772665095730,-790.46,0.00049315,120]
[407677612,1772665095793,-165.326245,0.00049315,120]
[407677613,1772665095857,-4718.46,0.00049315,120]
[407677614,1772665095922,-151.0,0.00049315,120]
[407677615,1772665095988,-790.46,0.00049315,120]
[407677616,1772665096051,-500.0,0.00049315,120]
[407677617,1772665096247,-790.46,0.00049315,120]
[407677618,1772665096305,-500.0,0.00049315,120]
[407677619,1772665096362,-790.46,0.00049315,120]
[407677620,1772665096424,-500.0,0.00049315,120]
[407677621,1772665096487,-248.038,0.00049315,120]
[407677622,1772665096546,-790.46,0.00049315,120]
[407677623,1772665096606,-500.0,0.00049315,120]
[407677624,1772665096663,-790.46,0.00049315,120]
[407677625,1772665096723,-500.0,0.00049315,120]
[407677626,1772665096780,-790.46,0.00049315,120]
[407677627,1772665096839,-500.0,0.00049315,120]
[407677628,1772665096903,-165.32625,0.00049315,120]
[407677629,1772665096966,-151.0,0.00049315,120]
[407677630,1772665097027,-790.46,0.00049315,120]
[407677631,1772665097086,-500.0,0.00049315,120]
[407677632,1772665097149,-790.46,0.00049315,120]
[407677633,1772665097211,-500.0,0.00049315,120]
[407677634,1772665097271,-500.0,0.00049315,120]
[407677635,1772665097330,-645.78,0.00049315,120]
[407677636,1772665097389,-790.46,0.00049315,120]
[407677637,1772665097449,-248.038,0.00049315,120]
[407677638,1772665097511,-790.54047863,0.00049315,120]
[407677639,1772665097574,-151.0,0.00049315,120]
[407677640,1772665097637,-500.0,0.00049315,120]
[407677641,1772665097700,-500.0,0.00049315,120]
[407677642,1772665097760,-500.0,0.00049315,120]
[407677643,1772665097820,-500.0,0.00049315,120]
[407677644,1772665097881,-500.0,0.00049315,120]
[407677645,1772665097949,-500.0,0.00049315,120]
[407677646,1772665098012,-500.0,0.00049315,120]
[407677647,1772665098072,-500.0,0.00049315,120]
[407677648,1772665098133,-500.0,0.00049315,120]
[407677649,1772665098196,-500.0,0.00049315,120]
[407677650,1772665098256,-500.0,0.00049315,120]
[407677651,1772665098316,-500.0,0.00049315,120]
[407677652,1772665098379,-916.681757,0.00049315,120]
[407677653,1772665098441,-500.0,0.00049315,120]
[407677654,1772665098502,-500.0,0.00049315,120]
[407677655,1772665098563,-500.0,0.00049315,120]
[407677656,1772665098625,-500.0,0.00049315,120]
[407677657,1772665098683,-4718.46,0.00049315,120]
[407677658,1772665098742,-500.0,0.00049315,120]
[407677659,1772665098798,-4718.46,0.00049315,120]
[407677660,1772665098859,-916.681757,0.00049315,120]
[407677661,1772665098918,-640.1210942,0.00049315,120]
[407677662,1772665098976,-4718.46,0.00049315,120]
[407677663,1772665099031,-4718.46,0.00049315,120]
[407677664,1772665099086,-4718.46,0.00049315,120]
[407677665,1772665099142,-4718.46,0.00049315,120]
[407677666,1772665099200,-4718.46,0.00049315,120]
[407677667,1772665099259,-916.681757,0.00049315,120]
[407677668,1772665099315,-4718.46,0.00049315,120]
[407677669,1772665099372,-4718.64425075,0.00049315,120]
[407677670,1772665099436,-916.681759,0.00049315,120]
[407677671,1772665099500,-800.0,0.00049315,32]
[407677672,1772665099565,-19859.91209041,0.00049315,30]
[407677673,1772665099633,-5000.0,0.000494,120]
[407677674,1772665099697,-3046.272,0.00049477,86]
[407677675,1772665099758,-1000.0,0.00049494,60]
[407677676,1772665099820,-50000.0,0.000495,90]
[407677677,1772665099881,-2000.0,0.000495,120]
[407677678,1772665099945,-9881.44679558,0.000495,120]
[407677679,1772665100004,-50000.0,0.0004951,90]
[407677680,1772665100063,-3395.35,0.00049613,30]
[407677681,1772665100127,-1890.6,0.00049758,30]
[407677682,1772665100189,-358.9746971,0.00049785,120]
[407677683,1772665100251,-150.0,0.00049792,120]
[407677684,1772665100315,-2000.0,0.00049795,30]
[407677685,1772665100381,-2000.0,0.00049795,30]
[407677686,1772665100446,-2000.0,0.00049795,30]
[407677687,1772665100508,-2000.0,0.00049795,30]
[407677688,1772665100571,-2000.0,0.00049795,30]
[407677689,1772665100635,-2000.0,0.00049795,30]
[407677690,1772665100702,-2000.0,0.00049795,30]
[407677691,1772665100765,-2000.0,0.00049795,30]
[407677692,1772665100827,-2000.0,0.00049795,30]
[407677693,1772665100890,-542.32339621,0.00049795,30]
[407677694,1772665100956,-2000.0,0.00049795,30]
[407677695,1772665101021,-2000.0,0.00049795,30]
[407677696,1772665101086,-10000.0,0.000498,120]
[407677697,1772665101148,-762.86,0.00049802,120]
[407677698,1772665101211,-9356.33033662,0.00049899,120]
[407677699,1772665101274,-9344.59289427,0.000499,120]
[407677700,1772665101335,-3346.0,0.000499,120]
[407677701,1772665101401,-150.0,0.000499,30]
[407677702,1772665101592,-5000000.0,0.000499,120]
[407677703,1772665101655,-2334.0,0.0004997,74]
[407677704,1772665101716,-1234.0,0.00049999,30]
[407677705,1772665101776,-510.49793319,0.00049999,120]
[407677706,1772665101839,-50000.0,0.0005,61]
[407677707,1772665101905,-700518.95769579,0.0005,55]
[407677708,1772665101968,-300282.20080393,0.0005,60]
[407677712,1772665349685,500.0,0.00012,2]
[407677729,1772665584090,152.92,0.00015471,2]
[407677730,1772665587744,-472.17,0.00015471,2]
[407677731,1772665587776,-166.66,0.00016495,2]
[407677732,1772665587805,-246.1,0.0001679,2]
[407677733,1772665587834,-166.66,0.00016842,2]
[407677734,1772665587863,-500.0,0.00016973,2]
[407677735,1772665587891,-300.0,0.00017,2]
[407677736,1772665587920,-2141.8377778,0.00017019,2]
[407677737,1772665587948,-246.1,0.0001706,2]
[407677738,1772665587977,-166.66,0.00017189,2]
[407677739,1772665588005,-246.1,0.0001733,2]
[407677740,1772665588246,-1000.0,0.00017521,2]
[407677741,1772665588285,-166.66,0.00017536,2]
[407677742,1772665588315,-3240.0,0.00017537,2]
[407677743,1772665588346,-246.1,0.000176,2]
[407677744,1772665588376,-173.0,0.00017638,2]
[407677745,1772665588406,-48.49,0.00017638,2]
[407677746,1772665588537,-251.51,0.00017638,2]
[407677747,1772665588567,-1200.0,0.00017639,2]
[407677748,1772665588595,-2524.554,0.0001764,2]
[407677749,1772665588626,-162.174,0.0001764,2]
[407677750,1772665588656,-246.1,0.0001787,2]
[407677751,1772665588689,-166.66,0.00017884,2]
[407677752,1772665588719,-217.0,0.00017898,2]
[407677753,1772665588749,-164.014,0.00017898,2]
[407677754,1772665588783,-135.986,0.00017898,2]
[407677755,1772665588812,-708.0,0.00017899,2]
[407677756,1772665588841,-158.41817356,0.000179,2]
[407677757,1772665588963,-2004.80834712,0.000179,2]
[407677758,1772665589293,-4009.61669424,0.000179,2]
[407677759,1772665589457,-1980.77661152,0.000179,2]
[407677760,1772665589487,-550.0,0.00017998,2]
[407677761,1772665589516,-500.0,0.00017999,2]
[407677762,1772665589544,-301.9279577,0.00017999,2]
[407677763,1772665589577,-500.0,0.00017999,2]
[407677764,1772665589610,-500.0,0.00017999,2]
[407677765,1772665589641,-500.0,0.00017999,2]
[407677766,1772665589671,-113.70110111,0.00017999,2]
[407677767,1772665589808,-107.19865934,0.00017999,2]
[407677768,1772665589843,-500.0,0.00017999,2]
[407677769,1772665589874,-500.0,0.00017999,2]
[407677770,1772665589907,-500.0,0.00017999,2]
[407677771,1772665589938,-500.0,0.00017999,2]
[407677772,1772665589970,-500.0,0.00017999,2]
[407677773,1772665590002,-329.47553428,0.00017999,2]
[407677774,1772665590037,-500.0,0.00017999,2]
[407677775,1772665590070,-500.0,0.00017999,2]
[407677776,1772665590102,-500.0,0.00017999,2]
[407677777,1772665590135,-500.0,0.00017999,2]
[407677778,1772665590273,-500.0,0.00017999,2]
[407677779,1772665590304,-500.0,0.00017999,2]
[407677780,1772665590336,-500.0,0.00017999,2]
[407677781,1772665590368,-500.0,0.00017999,2]
[407677782,1772665590401,-500.0,0.00017999,2]
[407677783,1772665590433,-500.0,0.00017999,2]
[407677784,1772665590465,-500.0,0.00017999,2]
[407677785,1772665590497,-500.0,0.00017999,2]
[407677786,1772665590530,-500.0,0.00017999,2]
[407677787,1772665590561,-500.0,0.00017999,2]
[407677788,1772665590770,-500.0,0.00017999,2]
[407677789,1772665590803,-500.0,0.00017999,2]
[407677790,1772665590839,-500.0,0.00017999,2]
[407677791,1772665590871,-500.0,0.00017999,2]
[407677792,1772665590902,-500.0,0.00017999,2]
[407677793,1772665590934,-500.0,0.00017999,2]
[407677794,1772665590966,-500.0,0.00017999,2]
[407677795,1772665590999,-500.0,0.00017999,2]
[407677796,1772665591036,-500.0,0.00017999,2]
[407677797,1772665591071,-500.0,0.00017999,2]
[407677798,1772665591126,-500.0,0.00017999,2]
[407677799,1772665591159,-500.0,0.00017999,2]
[407677800,1772665591190,-200.0,0.00017999,2]
[407677801,1772665591745,-388.20566391,0.00018,2]
[407677802,1772665591797,-220.89976045,0.00018,2]
[407677803,1772665591850,-107.19865934,0.00018,2]
[407677804,1772665591875,-500.0,0.00018,2]
[407677805,1772665591896,-500.0,0.00018,2]
[407677806,1772665591911,-500.0,0.00018,2]
[407677807,1772665591929,-500.0,0.00018,2]
[407677808,1772665591942,-500.0,0.00018,2]
[407677809,1772665591956,-329.47553428,0.00018,2]
[407677810,1772665591970,-500.0,0.00018,2]
[407677811,1772665591993,-500.0,0.00018,2]
[407677812,1772665592018,-500.0,0.00018,2]
[407677813,1772665592058,-500.0,0.00018,2]
[407677814,1772665592089,-126.66161276,0.00018,2]
[407677815,1772665592111,-500.0,0.00018,2]
[407677816,1772665592137,-500.0,0.00018,2]
[407677817,1772665592154,-500.0,0.00018,2]
[407677818,1772665592183,-500.0,0.00018,2]
[407677819,1772665592199,-500.0,0.00018,2]
[407677820,1772665592227,-500.0,0.00018,2]
[407677821,1772665592243,-500.0,0.00018,2]
[407677822,1772665592257,-500.0,0.00018,2]
[407677823,1772665592275,-500.0,0.00018,2]
[407677824,1772665592293,-500.0,0.00018,2]
[407677825,1772665592342,-0.01,0.00018,2]
[407677826,1772665592364,-500.0,0.00018,2]
[407677827,1772665592385,-500.0,0.00018,2]
[407677828,1772665592410,-500.0,0.00018,2]
[407677829,1772665592423,-500.0,0.00018,2]
[407677830,1772665592442,-500.0,0.00018,2]
[407677831,1772665592456,-500.0,0.00018,2]
[407677832,1772665592469,-500.0,0.00018,2]
[407677833,1772665592488,-500.0,0.00018,2]
[407677834,1772665592502,-500.0,0.00018,2]
[407677835,1772665592525,-500.0,0.00018,2]
[407677836,1772665592539,-0.01,0.00018,2]
[407677837,1772665592558,-500.0,0.00018,2]
[407677838,1772665592695,-500.0,0.00018,2]
[407677839,1772665592711,-200.0,0.00018,2]
[407677840,1772665592729,-7600.01,0.00018,2]
[407677841,1772665592754,-10000.01,0.00018,2]
[407677842,1772665592768,-10000.01,0.00018,2]
[407677843,1772665592813,-10000.01,0.00018,2]
[407677844,1772665592833,-10000.01,0.00018,2]
[407677845,1772665593895,-10000.01,0.00018,2]
[407677846,1772665594014,-10000.01,0.00018,2]
[407677847,1772665594138,-10000.01,0.00018,2]
[407677848,1772665594277,-10000.01,0.00018,2]
[407677849,1772665594911,-10000.01,0.00018,2]
[407677850,1772665595084,-10000.01,0.00018,2]
[407677851,1772665595228,-10000.01,0.00018,2]
[407677852,1772665595374,-10000.01,0.00018,2]
[407677853,1772665595518,-10000.01,0.00018,2]
[407677854,1772665595676,-10000.01,0.00018,2]
[407677855,1772665595812,-10000.01,0.00018,2]
[407677856,1772665595970,-10000.01,0.00018,2]
[407677857,1772665596142,-10000.01,0.00018,2]
[407677858,1772665596281,-10000.01,0.00018,2]
[407677859,1772665596456,-10000.01,0.00018,2]
[407677860,1772665650295,527.83,0.00012,2]
[407677861,1772665687805,-500.0,0.00016973,2]
[407677862,1772665687832,-1000.0,0.00017521,2]
[407677863,1772665690132,500.0,0.00016973,2]
[407677864,1772665690181,1000.0,0.00017521,2]
[407677865,1772665775757,154.5,9.393e-05,2]
[407677866,1772665776010,154.5,0.0001409,2]
[407677867,1772665814445,1174.52,0.00015294,2]
[407677876,1772665832076,-302.0,0.00017882,2]
[407677877,1772665832087,-1764.9797549,0.00017882,2]
[407677878,1772665832097,-1200.0,0.00017899,2]
[407677879,1772665832111,-6462.70728399,0.000179,2]
[407677880,1772665832120,-300.0,0.00017997,2]
[407677881,1772665832130,-500.0,0.00017998,2]
[407677882,1772665832140,-300.0,0.00017998,2]
[407677883,1772665832150,-1200.0,0.00017999,2]
[407677884,1772665832160,-500.0,0.00017999,2]
[407677885,1772665832171,-500.0,0.00017999,2]
[407677886,1772665832180,-500.0,0.00017999,2]
[407677887,1772665832190,-500.0,0.00017999,2]
[407677888,1772665832201,-500.0,0.00017999,2]
[407677889,1772665832211,-500.0,0.00017999,2]
[407677890,1772665832221,-500.0,0.00017999,2]
[407677891,1772665832231,-500.0,0.00017999,2]
[407677892,1772665832240,-500.0,0.00017999,2]
[407677893,1772665832250,-500.0,0.00017999,2]
[407677894,1772665832260,-300.0,0.00017999,2]
[407677895,1772665832271,-500.0,0.00017999,2]
[407677896,1772665832281,-500.0,0.00017999,2]
[407677897,1772665832291,-500.0,0.00017999,2]
[407677898,1772665832300,-500.0,0.00017999,2]
[407677899,1772665832310,-500.0,0.00017999,2]
[407677900,1772665832325,-500.0,0.00017999,2]
[407677901,1772665832335,-500.0,0.00017999,2]
[407677902,1772665832345,-500.0,0.00017999,2]
[407677903,1772665832354,-500.0,0.00017999,2]
[407677904,1772665832364,-500.0,0.00017999,2]
[407677905,1772665832374,-500.0,0.00017999,2]
[407677906,1772665832383,-500.0,0.00017999,2]
[407677907,1772665832394,-500.0,0.00017999,2]
[407677908,1772665832406,-500.0,0.00017999,2]
[407677909,1772665832421,-500.0,0.00017999,2]
[407677910,1772665832435,-235.03057136,0.00017999,2]
[407677911,1772665832446,-500.0,0.00017999,2]
[407677912,1772665832455,-92330.07891646,0.00018,2]
[407677913,1772665832467,-578.66382803,0.00018,2]
[407677914,1772665832479,-452.05784109,0.00018,2]
[407677915,1772665832491,-400.45,0.00018,2]
[407677916,1772665832501,-485.4185,0.00018,2]
[407677917,1772665832513,-1137.77450429,0.00018,2]
[407677919,1772665832534,-1296.44850723,0.00018,2]
[407677928,1772665838150,-581.1401268,0.00018,2]
[407677929,1772665838435,-257.57282881,0.00018,2]
[407677930,1772665838447,-3031.01772585,0.00018,2]
[407677932,1772665838458,-340.64224758,0.00018,2]
[407677933,1772665838486,-605.76227415,0.00018,2]
[407677947,1772665840428,-1407.52319047,0.00018,2]
[407677948,1772665840834,-3320.02797806,0.00018,2]
[407677971,1772665843271,-5222.57173595,0.00018,2]
[407677973,1772665843500,-73704.39060332,0.00018,2]
[407677975,1772665846015,-478.15279094,0.00018,2]
[407677976,1772665846079,-153364.45440832,0.00018,2]
[407677977,1772665846091,-1692.2736255,0.00018,2]
[407677978,1772665846102,-467.74106694,0.00018,2]
[407677979,1772665846116,-2357.88223885,0.00018,2]
[407677980,1772665846132,-601.71500188,0.00018,2]
[407677981,1772665846146,-14505.79442698,0.00018,2]
[407677996,1772665855595,-11765.32553901,0.00018,2]
[407677997,1772665855605,-165514.07110684,0.00018,2]
[407677998,1772665855615,-308.53351283,0.00018,2]
[407677999,1772665855624,-1002.19659776,0.00018,2]
[407678000,1772665855633,-200.0,0.00018,2]
[407678001,1772665855643,-246.1,0.0001814,2]
[407678002,1772665855653,-200.0,0.0001818,2]
[407678003,1772665855662,-166.66,0.00018231,2]
[407678004,1772665855672,-88840.86,0.00018356,2]
[407678005,1772665855682,-200.0,0.00018362,2]
[407678006,1772665855692,-246.1,0.0001841,2]
[407678007,1772665855702,-152.92,0.00018471,2]
[407678008,1772665855712,-15000.0,0.000185,7]
[407678009,1772665855721,-500.0,0.00018545,2]
[407678010,1772665855731,-200.0,0.00018545,2]
[407678011,1772665855741,-246.1,0.0001868,2]
[407678012,1772665855750,-200.0,0.00018731,2]
[407678013,1772665855760,-154.5,0.00018787,2]
[407678014,1772665855770,-500.0,0.00018819,2]
[407678015,1772665855780,-246.1,0.0001895,2]
[407678016,1772665855790,-5188.76309389,0.00019,2]
[407678017,1772665855799,-500.0,0.00019093,2]
[407678018,1772665855809,-20220.04,0.00019178,2]
[407678019,1772665855819,-150.0,0.00019178,2]
[407678020,1772665855829,-150.0,0.00019178,2]
[407678021,1772665855839,-150.0,0.00019178,2]
[407678022,1772665855850,-246.1,0.0001922,2]
[407678023,1772665855860,-246.1,0.0001949,2]
[407678024,1772665855869,-1680.0,0.00019628,2]
[407678025,1772665855879,-157.0,0.00019637,2]